bitfinex-derivatives/quotes_BNBF0:USTF0_20250709
["timestamp","ask_amount","ask_price","bid_price","bid_amount"]
[1752103346563,3.35448843,669.77,669.19,2.693]
[1752103346762,3.35448843,669.77,669.2,1.52798971]
[1752103346963,3.35448843,669.77,669.21,1.52798971]
[1752103347162,3.35448843,669.77,669.19,2.693]
[1752103347359,3.35448843,669.77,669.2,1.52798072]
[1752103347662,3.35448843,669.77,669.21,1.52798072]
[1752103347862,3.35448843,669.72,669.19,2.693]
[1752103348058,3.35448843,669.72,669.2,1.52797472]
[1752103348263,3.35448843,669.72,669.19,2.693]
[1752103348264,3.35448843,669.72,669.21,1.52797472]
[1752103348460,3.35448843,669.72,669.19,2.693]
[1752103348667,3.35448843,669.72,669.2,1.52795888]
[1752103348861,3.35448843,669.72,669.21,1.52795888]
[1752103349060,3.35448843,669.72,669.19,2.693]
[1752103349261,3.35448843,669.71,669.2,1.52795017]
[1752103349464,3.35448843,669.71,669.21,1.52795017]
[1752103349764,3.35448843,669.71,669.19,2.693]
[1752103349965,3.35448843,669.71,669.2,1.52794385]
[1752103350164,3.35448843,669.71,669.21,1.52794385]
[1752103350366,3.35448843,669.71,669.19,2.693]
[1752103350565,3.35448843,669.71,669.2,1.52792931]
[1752103350763,3.35448843,669.71,669.21,1.52792931]
[1752103350966,3.35448843,669.71,669.19,2.693]
[1752103351263,3.35448843,669.71,669.2,1.52792939]
[1752103351566,3.35448843,669.71,669.21,1.52792939]
[1752103351765,3.35448843,669.71,669.19,2.693]
[1752103351964,3.35448843,669.71,669.2,1.52791716]
[1752103352267,3.35448843,669.71,669.21,1.52791716]
[1752103352465,3.35448843,669.71,669.19,2.693]
[1752103352668,3.35448843,669.71,669.2,1.52790551]
[1752103352867,3.35448843,669.71,669.21,1.52790551]
[1752103353068,3.35448843,669.71,669.19,2.693]
[1752103353268,3.35448843,669.71,669.2,1.52790117]
[1752103353568,3.35448843,669.71,669.21,1.52790117]
[1752103353769,3.35448843,669.71,668.95,1.67973753]
[1752103354065,3.35448843,669.7,668.96,1.52789443]
[1752103354268,3.35448843,669.7,668.97,1.52789443]
[1752103354468,3.35448843,669.7,668.98,1.52789443]
[1752103354669,3.35448843,669.7,668.99,1.52789443]
[1752103354969,3.35448843,669.62,669.0,1.52789443]
[1752103355168,3.35448843,669.63,669.01,1.52789443]
[1752103355469,3.35448843,669.62,669.02,1.52789443]
[1752103355668,3.35448843,669.63,669.03,1.52789443]
[1752103355969,3.35448843,669.63,669.04,1.52789443]
[1752103356167,3.35448843,669.63,669.05,1.52789443]
[1752103356370,3.35448843,669.63,669.06,1.52789443]
[1752103356566,3.35448843,669.63,669.07,1.52789443]
[1752103356770,3.35448843,669.63,669.08,1.52789443]
[1752103356971,3.35448843,669.63,669.09,1.52789443]
[1752103357171,0.25991097,669.88,669.1,1.52789443]
[1752103357371,0.25991097,669.88,669.11,1.52789443]
[1752103357571,0.25991097,669.88,669.12,1.52789443]
[1752103357770,0.25991097,669.88,669.13,1.52789443]
[1752103358071,0.25991097,669.88,669.14,1.52789443]
[1752103358268,0.25991097,669.88,669.15,1.52789443]
[1752103358466,0.25991097,669.88,669.16,1.52789443]
[1752103358765,0.25991097,669.88,669.17,1.52789443]
[1752103359070,0.25991097,669.88,669.18,1.52789443]
[1752103359367,0.25991097,669.88,669.19,1.52789443]
[1752103359568,0.25991097,669.88,669.2,1.52789443]
[1752103359871,0.25991097,669.88,669.21,1.52789443]
[1752103360068,0.25991097,669.88,669.22,1.52789443]
[1752103360271,0.25991097,669.88,669.23,1.52789443]
[1752103360472,0.25991097,669.88,669.24,1.52789443]
[1752103360668,0.25991097,669.88,668.85,1.67973753]
[1752103360872,0.25991097,669.88,668.86,1.52771414]
[1752103361072,0.25991097,669.88,668.87,1.52771414]
[1752103361272,0.25991097,669.88,668.85,1.67973753]
[1752103361273,0.25991097,669.88,668.88,1.52771414]
[1752103361574,0.25991097,669.88,668.89,1.52771414]
[1752103361773,0.25991097,669.88,668.9,1.52771414]
[1752103361970,0.25991097,669.88,668.91,1.52771414]
[1752103362169,0.25991097,669.88,668.92,1.52771414]
[1752103362372,0.25991097,669.88,668.93,1.52771414]
[1752103362573,0.25991097,669.88,668.94,1.52771414]
[1752103362773,0.25991097,669.88,668.95,1.52771414]
[1752103362973,0.25991097,669.88,668.96,1.52771414]
[1752103363173,0.25991097,669.88,668.97,1.52771414]
[1752103363374,0.25991097,669.88,668.98,1.52771414]
[1752103363673,0.25991097,669.88,668.99,1.52771414]
[1752103363874,0.25991097,669.88,669.0,1.52771414]
[1752103364078,0.25991097,669.88,669.01,1.52771414]
[1752103364273,0.25991097,669.88,669.02,1.52771414]
[1752103364475,0.25991097,669.88,669.03,1.52771414]
[1752103364675,0.25991097,669.88,669.04,1.52771414]
[1752103364973,0.25991097,669.88,669.05,1.52771414]
[1752103365269,0.25991097,669.88,669.06,1.52771414]
[1752103365474,0.25991097,669.88,669.07,1.52771414]
[1752103365673,0.25991097,669.88,669.08,1.52771414]
[1752103365870,0.25991097,669.88,669.09,1.52771414]
[1752103366074,0.25991097,669.88,669.1,1.52771414]
[1752103366275,0.25991097,669.88,669.11,1.52771414]
[1752103366475,0.25991097,669.88,668.84,1.67973753]
[1752103366476,0.25991097,669.88,669.12,1.52771414]
[1752103366671,0.25991097,669.88,669.13,1.52771414]
[1752103366975,3.35448843,669.81,669.14,1.52771414]
[1752103367170,3.35448843,669.78,669.15,1.52771414]
[1752103367476,3.35448843,669.78,669.16,1.52771414]
[1752103367675,0.25991097,669.88,669.17,1.52771414]
[1752103367876,0.25991097,669.88,669.18,1.52771414]
[1752103368072,0.25991097,669.88,669.19,1.52771414]
[1752103368275,0.25991097,669.88,669.2,1.52771414]
[1752103368475,0.25991097,669.88,669.21,1.52771414]
[1752103368675,0.25991097,669.88,669.22,1.52771414]
[1752103368876,0.25991097,669.88,669.23,1.52771414]
[1752103369076,0.25991097,669.88,669.24,1.52771414]
[1752103369276,0.25991097,669.88,668.82,1.67973753]
[1752103369572,0.25991097,669.88,668.83,1.52772442]
[1752103369776,0.25991097,669.88,668.84,1.52772442]
[1752103370072,0.25991097,669.88,668.85,1.52772442]
[1752103370277,0.25991097,669.88,668.86,1.52772442]
[1752103370474,0.25991097,669.88,668.87,1.52772442]
[1752103370677,0.25991097,669.88,668.88,1.52772442]
[1752103370875,0.25991097,669.88,668.89,1.52772442]
[1752103371074,0.25991097,669.88,668.9,1.52772442]
[1752103371274,0.25991097,669.88,668.91,1.52772442]
[1752103371474,0.25991097,669.88,668.92,1.52772442]
[1752103371676,0.25991097,669.88,668.93,1.52772442]
[1752103371877,0.25991097,669.88,668.94,1.52772442]
[1752103372081,0.25991097,669.88,668.95,1.52772442]
[1752103372281,0.25991097,669.88,668.96,1.52772442]
[1752103372478,0.25991097,669.88,668.97,1.52772442]
[1752103372683,0.25991097,669.88,668.98,1.52772442]
[1752103372978,0.25991097,669.88,668.99,1.52772442]
[1752103373279,0.25991097,669.88,669.0,1.52772442]
[1752103373478,0.25991097,669.88,669.01,1.52772442]
[1752103373677,0.25991097,669.88,669.02,1.52772442]
[1752103373881,0.25991097,669.88,669.03,1.52772442]
[1752103374082,0.25991097,669.88,669.04,1.52772442]
[1752103374381,0.25991097,669.88,669.05,1.52772442]
[1752103374579,0.25991097,669.88,669.06,1.52772442]
[1752103374784,0.25991097,669.88,669.07,1.52772442]
[1752103374983,0.25991097,669.88,669.08,1.52772442]
[1752103375181,0.25991097,669.88,669.09,1.52772442]
[1752103375383,0.25991097,669.88,669.1,1.52772442]
[1752103375680,0.25991097,669.88,669.11,1.52772442]
[1752103375880,0.25991097,669.88,669.12,1.52772442]
[1752103376079,0.25991097,669.88,669.13,1.52772442]
[1752103376279,0.25991097,669.88,669.14,1.52772442]
[1752103376484,0.25991097,669.88,669.15,1.52772442]
[1752103376779,0.25991097,669.88,669.16,1.52772442]
[1752103377084,0.25991097,669.88,669.17,1.52772442]
[1752103377281,0.25991097,669.88,669.18,1.52772442]
[1752103377479,3.35448843,669.86,669.19,1.52772442]
[1752103377682,3.35448843,669.86,669.2,1.52772442]
[1752103377985,3.35448843,669.86,669.21,1.52772442]
[1752103378286,3.35448843,669.86,669.22,1.52772442]
[1752103378586,3.35448843,669.86,669.23,1.52772442]
[1752103378785,3.35448843,669.86,669.24,1.52772442]
[1752103379085,3.35448843,669.87,669.25,1.52772442]
[1752103379286,3.35448843,669.86,669.26,1.52772442]
[1752103379483,3.35448843,669.86,669.27,1.52772442]
[1752103379681,3.35448843,669.86,669.28,1.52772442]
[1752103379886,3.35448843,669.86,669.29,1.52772442]
[1752103380185,3.35448843,669.86,669.01,1.67973753]
[1752103380386,3.35448843,669.86,669.02,1.52633545]
[1752103380586,3.35448843,669.86,669.03,1.52633545]
[1752103380785,3.35448843,669.86,669.04,1.52633545]
[1752103381085,3.35448843,669.86,669.05,1.52633545]
[1752103381283,3.35448843,669.86,669.06,1.52633545]
[1752103381482,3.35448843,669.86,669.07,1.52633545]
[1752103381686,3.35448843,669.86,669.08,1.52633545]
[1752103381886,3.35448843,669.86,669.09,1.52633545]
[1752103382181,0.25991097,669.88,669.1,1.52633545]
[1752103382387,0.25991097,669.88,669.11,1.52633545]
[1752103382682,0.25991097,669.88,669.12,1.52633545]
[1752103382883,0.25991097,669.88,669.13,1.52633545]
[1752103383086,0.25991097,669.88,669.14,1.52633545]
[1752103383286,0.25991097,669.88,669.15,1.52633545]
[1752103383485,0.25991097,669.88,669.16,1.52633545]
[1752103383684,0.25991097,669.88,669.17,1.52633545]
[1752103383889,0.25991097,669.88,669.18,1.52633545]
[1752103384191,0.25991097,669.88,669.19,1.52633545]
[1752103384383,0.25991097,669.88,669.2,1.52633545]
[1752103384689,0.25991097,669.88,669.21,1.52633545]
[1752103384886,0.25991097,669.88,669.22,1.52633545]
[1752103385085,0.25991097,669.88,669.23,1.52633545]
[1752103385385,0.25991097,669.88,669.0,2.747]
[1752103385386,0.25991097,669.88,669.24,1.52633545]
[1752103385585,0.25991097,669.88,669.25,1.52633545]
[1752103385784,0.25991097,669.88,669.26,1.52633545]
[1752103385984,0.25991097,669.88,669.27,1.52633545]
[1752103386188,0.25991097,669.88,669.28,1.52633545]
[1752103386387,0.25991097,669.88,669.0,2.747]
[1752103386585,0.25991097,669.88,669.01,1.52622775]
[1752103386785,0.25991097,669.88,669.02,1.52622775]
[1752103386987,0.25991097,669.88,669.03,1.52622775]
[1752103387286,0.25991097,669.88,669.04,1.52622775]
[1752103387492,0.25991097,669.88,669.05,1.52622775]
[1752103387686,0.25991097,669.88,669.06,1.52622775]
[1752103387989,0.25991097,669.88,669.07,1.52622775]
[1752103388190,0.25991097,669.88,669.08,1.52622775]
[1752103388390,0.25991097,669.88,669.09,1.52622775]
[1752103388590,0.25991097,669.88,669.1,1.52622775]
[1752103388791,0.25991097,669.88,669.11,1.52622775]
[1752103389000,0.25991097,669.88,669.12,1.52622775]
[1752103389195,0.25991097,669.88,669.13,1.52622775]
[1752103389397,0.25991097,669.88,669.14,1.52622775]
[1752103389597,0.25991097,669.88,669.15,1.52622775]
[1752103389796,0.25991097,669.88,669.16,1.52622775]
[1752103389995,0.25991097,669.88,669.17,1.52622775]
[1752103390194,0.25991097,669.88,669.18,1.52622775]
[1752103390498,0.25991097,669.88,669.19,1.52622775]
[1752103390698,0.25991097,669.88,669.2,1.52622775]
[1752103390998,0.25991097,669.88,669.0,2.747]
[1752103390999,0.25991097,669.88,669.21,1.52622775]
[1752103391295,0.25991097,669.88,669.22,1.52622775]
[1752103391498,0.25991097,669.88,669.23,1.52622775]
[1752103391698,0.25991097,669.88,669.0,2.747]
[1752103391899,0.25991097,669.88,669.01,1.52612825]
[1752103392098,0.25991097,669.88,669.02,1.52612825]
[1752103392398,0.25991097,669.88,669.03,1.52612825]
[1752103392598,0.25991097,669.88,669.04,1.52612825]
[1752103392899,0.25991097,669.88,669.05,1.52612825]
[1752103393095,0.25991097,669.88,669.06,1.52612825]
[1752103393301,3.35448843,669.87,669.07,1.52612825]
[1752103393495,3.6143994,669.88,669.08,1.52612825]
[1752103393697,3.6143994,669.88,669.09,1.52612825]
[1752103394001,3.6143994,669.88,669.1,1.52612825]
[1752103394198,3.6143994,669.88,669.11,1.52612825]
[1752103394399,3.6143994,669.88,669.12,1.52612825]
[1752103394598,3.6143994,669.88,669.13,1.52612825]
[1752103394802,3.6143994,669.88,669.14,1.52612825]
[1752103395102,3.6143994,669.88,669.15,1.52612825]
[1752103395300,3.6143994,669.88,669.16,1.52612825]
[1752103395498,3.6143994,669.88,669.17,1.52612825]
[1752103395698,3.6143994,669.88,669.18,1.52612825]
[1752103395902,3.6143994,669.88,669.19,1.52612825]
[1752103396100,3.6143994,669.88,669.2,1.52612825]
[1752103396300,3.6143994,669.88,669.21,1.52612825]
[1752103396499,3.6143994,669.88,669.22,1.52612825]
[1752103396701,3.6143994,669.88,669.23,1.52612825]
[1752103396900,3.6143994,669.88,669.0,2.747]
[1752103397100,3.6143994,669.88,669.01,1.52610339]
[1752103397400,3.6143994,669.88,669.02,1.52610339]
[1752103397604,3.6143994,669.88,669.03,1.52610339]
[1752103397801,3.6143994,669.88,669.04,1.52610339]
[1752103398102,3.6143994,669.88,669.05,1.52610339]
[1752103398302,3.35448843,669.86,669.06,1.52610339]
[1752103398605,3.35448843,669.86,669.0,2.747]
[1752103398606,3.35448843,669.86,669.07,1.52610339]
[1752103398804,3.35448843,669.86,669.08,1.52610339]
[1752103399001,3.35448843,669.78,669.09,1.52610339]
[1752103399200,3.35448843,669.78,669.1,1.52610339]
[1752103399405,3.35448843,669.78,669.11,1.52610339]
[1752103399605,3.35448843,669.78,669.12,1.52610339]
[1752103399802,3.35448843,669.78,669.13,1.52610339]
[1752103400006,3.35448843,669.78,669.14,1.52610339]
[1752103400306,3.35448843,669.78,669.15,1.52610339]
[1752103400600,3.35448843,669.78,669.16,1.52610339]
[1752103400807,3.35448843,669.78,669.0,2.747]
[1752103400808,3.35448843,669.78,669.17,1.52610339]
[1752103401003,3.35448843,669.78,669.18,1.52610339]
[1752103401202,3.35448843,669.78,669.19,1.52610339]
[1752103401407,3.35448843,669.78,669.2,1.52610339]
[1752103401603,3.35448843,669.78,669.21,1.52610339]
[1752103401808,3.35448843,669.78,669.22,1.52610339]
[1752103402104,3.35448843,669.76,669.23,1.52610339]
[1752103402308,3.35448843,669.76,669.0,2.747]
[1752103402509,3.35448843,669.76,669.01,1.52619665]
[1752103402809,3.35448843,669.76,669.02,1.52619665]
[1752103403008,3.35448843,669.76,669.03,1.52619665]
[1752103403305,3.35448843,669.76,669.04,1.52619665]
[1752103403505,3.35448843,669.73,669.05,1.52619665]
[1752103403706,3.35448843,669.72,669.06,1.52619665]
[1752103403905,3.35448843,669.72,669.07,1.52619665]
[1752103404109,3.35448843,669.72,669.08,1.52619665]
[1752103404306,3.35448843,669.72,669.09,1.52619665]
[1752103404506,3.35448843,669.72,669.1,1.52619665]
[1752103404710,3.35448843,669.75,669.11,1.52619665]
[1752103404904,3.35448843,669.75,669.12,1.52619665]
[1752103405108,3.35448843,669.75,669.13,1.52619665]
[1752103405304,3.35448843,669.75,669.14,1.52619665]
[1752103405506,3.35448843,669.75,669.15,1.52619665]
[1752103405809,3.35448843,669.75,669.16,1.52619665]
[1752103406006,3.35448843,669.75,669.17,1.52619665]
[1752103406207,3.35448843,669.75,669.18,1.52619665]
[1752103406410,3.35448843,669.75,669.19,1.52619665]
[1752103406609,3.35448843,669.75,669.2,1.52619665]
[1752103406810,3.35448843,669.75,669.21,1.52619665]
[1752103407105,3.35448843,669.75,669.22,1.52619665]
[1752103407310,3.35448843,669.75,669.23,1.52619665]
[1752103407606,3.35448843,669.75,669.24,1.52619665]
[1752103407811,3.35448843,669.75,669.01,1.67973753]
[1752103408010,3.35448843,669.75,669.02,1.52634548]
[1752103408208,3.35448843,669.75,669.03,1.52634548]
[1752103408409,3.35448843,669.75,669.04,1.52634548]
[1752103408609,3.35448843,669.75,669.05,1.52634548]
[1752103408808,3.35448843,669.75,669.06,1.52634548]
[1752103409014,3.35448843,669.75,669.07,1.52634548]
[1752103409208,3.35448843,669.75,669.08,1.52634548]
[1752103409515,3.35448843,669.75,669.09,1.52634548]
[1752103409713,3.35448843,669.75,669.1,1.52634548]
[1752103409910,3.35448843,669.75,669.11,1.52634548]
[1752103410214,3.35448843,669.75,669.12,1.52634548]
[1752103410514,3.35448843,669.74,669.13,1.52634548]
[1752103410712,3.35448843,669.74,669.14,1.52634548]
[1752103410911,3.35448843,669.74,669.15,1.52634548]
[1752103411115,3.35448843,669.74,669.16,1.52634548]
[1752103411314,3.35448843,669.74,669.17,1.52634548]
[1752103411514,3.35448843,669.73,669.18,1.52634548]
[1752103411714,3.35448843,669.73,669.19,1.52634548]
[1752103411914,3.35448843,669.73,669.2,1.52634548]
[1752103412114,3.35448843,669.73,669.21,1.52634548]
[1752103412415,3.35448843,669.74,669.22,1.52634548]
[1752103412611,3.35448843,669.74,669.23,1.52634548]
[1752103412812,3.35448843,669.74,669.24,1.52634548]
[1752103413117,3.35448843,669.77,669.25,1.52634548]
[1752103413312,3.35448843,669.77,669.04,1.67973753]
[1752103413313,3.35448843,669.77,669.26,1.52634548]
[1752103413513,3.35448843,669.77,669.27,1.52634548]
[1752103413718,3.35448843,669.77,669.04,1.67973753]
[1752103413914,3.35448843,669.77,669.05,1.52656785]
[1752103414118,3.35448843,669.76,669.06,1.52656785]
[1752103414318,3.35448843,669.76,669.07,1.52656785]
[1752103414516,3.35448843,669.74,669.08,1.52656785]
[1752103414718,3.35448843,669.74,669.04,1.67973753]
[1752103414719,3.35448843,669.74,669.09,1.52656785]
[1752103414921,3.35448843,669.74,669.1,1.52656785]
[1752103415214,3.35448843,669.74,669.11,1.52656785]
[1752103415418,3.35448843,669.74,669.12,1.52656785]
[1752103415615,3.35448843,669.74,669.13,1.52656785]
[1752103415816,3.35448843,669.74,669.14,1.52656785]
[1752103416119,3.35448843,669.76,669.15,1.52656785]
[1752103416419,3.35448843,669.82,668.96,2.2370646]
[1752103416619,3.35448843,669.82,669.09,1.67769951]
[1752103416819,3.35448843,669.82,669.1,1.52484394]
[1752103417017,3.35448843,669.82,669.11,1.52484394]
[1752103417221,3.35448843,669.82,669.12,1.52484394]
[1752103417518,3.35448843,669.75,669.13,1.52484394]
[1752103417822,3.35448843,669.75,669.14,1.52484394]
[1752103418020,3.35448843,669.75,669.15,1.52484394]
[1752103418321,3.35448843,669.74,669.16,1.52484394]
[1752103418522,3.35448843,669.74,669.17,1.52484394]
[1752103418723,3.35448843,669.74,669.18,1.52484394]
[1752103418923,3.35448843,669.74,669.19,1.52484394]
[1752103419124,3.35448843,669.74,669.2,1.52484394]
[1752103419317,3.35448843,669.74,669.21,1.52484394]
[1752103419519,3.35448843,669.74,669.22,1.52484394]
[1752103419721,3.35448843,669.74,669.23,1.52484394]
[1752103420017,3.35448843,669.74,669.24,1.52484394]
[1752103420219,3.35448843,669.74,669.25,1.52484394]
[1752103420418,3.35448843,669.74,669.16,2.049]
[1752103420622,3.35448843,669.74,669.17,1.52520588]
[1752103420822,3.35448843,669.75,669.18,1.52520588]
[1752103421018,3.35448843,669.75,669.16,2.049]
[1752103421019,3.35448843,669.75,669.19,1.52520588]
[1752103421318,3.35448843,669.75,669.2,1.52520588]
[1752103421522,3.35448843,669.75,669.21,1.52520588]
[1752103421720,3.35448843,669.75,669.22,1.52520588]
[1752103421922,3.35448843,669.75,669.23,1.52520588]
[1752103422122,3.35448843,669.75,669.24,1.52520588]
[1752103422320,3.35448843,669.74,669.25,1.52520588]
[1752103422524,3.35448843,669.74,669.26,1.52520588]
[1752103422720,3.35448843,669.74,669.16,2.049]
[1752103422921,3.35448843,669.74,669.17,1.52530503]
[1752103423219,3.35448843,669.74,669.18,1.52530503]
[1752103423520,3.35448843,669.74,669.19,1.52530503]
[1752103423720,3.35448843,669.75,669.2,1.52530503]
[1752103423919,3.35448843,669.85,669.21,1.52530503]
[1752103424224,3.35448843,669.85,669.22,1.52530503]
[1752103424425,3.35448843,669.85,669.23,1.52530503]
[1752103424720,3.35448843,669.85,669.24,1.52530503]
[1752103424924,3.35448843,669.85,669.25,1.52530503]
[1752103425124,3.35448843,669.85,669.26,1.52530503]
[1752103425326,3.35448843,669.87,669.27,1.52535443]
[1752103425624,3.35448843,669.87,669.28,1.52535443]
[1752103425821,3.35448843,669.87,669.16,2.049]
[1752103426026,3.35448843,669.86,669.17,1.52543716]
[1752103426224,0.25991097,669.88,669.18,1.52543716]
[1752103426421,0.25991097,669.88,669.19,1.52543716]
[1752103426624,0.25991097,669.88,669.2,1.52543716]
[1752103426825,0.25991097,669.88,669.21,1.52543716]
[1752103427025,0.25991097,669.88,669.22,1.52543716]
[1752103427224,0.25991097,669.88,669.16,2.049]
[1752103427225,0.25991097,669.88,669.23,1.52543716]
[1752103427525,0.25991097,669.88,669.24,1.52543716]
[1752103427821,0.25991097,669.88,669.25,1.52543716]
[1752103428120,0.25991097,669.88,669.26,1.52543716]
[1752103428320,0.25991097,669.88,669.27,1.52543716]
[1752103428525,0.25991097,669.88,669.28,1.52543716]
[1752103428724,0.25991097,669.88,669.16,2.049]
[1752103429020,0.25991097,669.88,669.17,1.5256402]
[1752103429225,0.25991097,669.88,669.18,1.5256402]
[1752103429420,0.25991097,669.88,669.16,2.049]
[1752103429421,0.25991097,669.88,669.19,1.5256402]
[1752103429725,0.25991097,669.88,669.2,1.5256402]
[1752103429919,0.25991097,669.88,669.21,1.5256402]
[1752103430221,0.25991097,669.88,669.22,1.5256402]
[1752103430425,0.25991097,669.88,669.23,1.5256402]
[1752103430627,0.25991097,669.88,669.24,1.5256402]
[1752103430827,0.25991097,669.88,669.25,1.5256402]
[1752103431126,0.25991097,669.88,669.26,1.5256402]
[1752103431322,0.25991097,669.88,669.27,1.5256402]
[1752103431527,0.25991097,669.88,669.28,1.5256402]
[1752103431827,0.25991097,669.88,669.29,1.5256402]
[1752103432025,0.25991097,669.88,669.3,1.5256402]
[1752103432324,0.25991097,669.88,669.31,1.5256402]
[1752103432624,0.25991097,669.88,669.32,1.5256402]
[1752103432824,0.25991097,669.88,669.33,1.5256402]
[1752103433022,0.25991097,669.88,669.16,2.049]
[1752103433221,0.25991097,669.88,669.17,1.52578827]
[1752103433427,0.25991097,669.88,669.18,1.52578827]
[1752103433627,0.25991097,669.88,669.19,1.52578827]
[1752103433830,0.25991097,669.88,669.2,1.52578827]
[1752103434025,0.25991097,669.88,669.21,1.52578827]
[1752103434226,0.25991097,669.88,669.22,1.52578827]
[1752103434429,0.25991097,669.88,669.23,1.52578827]
[1752103434730,0.25991097,669.88,669.24,1.52578827]
[1752103434926,0.25991097,669.88,669.25,1.52578827]
[1752103435126,0.25991097,669.88,669.26,1.52578827]
[1752103435429,0.25991097,669.88,669.27,1.52578827]
[1752103435629,0.25991097,669.88,669.28,1.52578827]
[1752103435830,0.25991097,669.88,669.29,1.52578827]
[1752103436029,0.25991097,669.88,669.3,1.52578827]
[1752103436229,0.25991097,669.88,669.16,2.049]
[1752103436230,3.35448843,669.85,669.31,1.52578827]
[1752103436427,3.35448843,669.84,669.32,1.52578827]
[1752103436632,3.35448843,669.84,669.16,2.049]
[1752103436931,3.35448843,669.83,669.17,1.52563523]
[1752103437131,3.35448843,669.83,669.18,1.52563523]
[1752103437431,3.35448843,669.83,669.19,1.52563523]
[1752103437626,3.35448843,669.83,669.2,1.52563523]
[1752103437826,3.35448843,669.83,669.21,1.52563523]
[1752103438128,3.35448843,669.81,669.22,1.52563523]
[1752103438331,3.35448843,669.81,669.23,1.52563523]
[1752103438531,3.35448843,669.81,669.24,1.52563523]
[1752103438731,3.35448843,669.81,669.25,1.52563523]
[1752103438933,3.35448843,669.81,669.26,1.52563523]
[1752103439231,3.35448843,669.81,669.27,1.52563523]
[1752103439428,3.35448843,669.81,669.28,1.52563523]
[1752103439629,3.35448843,669.81,669.29,1.52563523]
[1752103439830,3.35448843,669.81,669.3,1.52563523]
[1752103440031,3.35448843,669.79,669.31,1.52563523]
[1752103440231,3.35448843,669.78,669.16,2.049]
[1752103440528,3.35448843,669.79,669.17,1.52553381]
[1752103440732,3.35448843,669.79,669.18,1.52553381]
[1752103440927,3.35448843,669.79,669.19,1.52553381]
[1752103441132,3.35448843,669.77,669.2,1.52553381]
[1752103441328,3.35448843,669.77,669.21,1.52553381]
[1752103441527,3.35448843,669.77,669.22,1.52553381]
[1752103441731,3.35448843,669.77,669.23,1.52553381]
[1752103441928,3.35448843,669.77,669.24,1.52553381]
[1752103442128,3.35448843,669.78,669.25,1.52553381]
[1752103442330,3.35448843,669.78,669.26,1.52553381]
[1752103442634,3.35448843,669.78,669.27,1.52553381]
[1752103442933,3.35448843,669.78,669.28,1.52553381]
[1752103443133,3.35448843,669.78,669.29,1.52553381]
[1752103443333,3.35448843,669.78,669.3,1.52553381]
[1752103443534,3.35448843,669.78,669.31,1.52553381]
[1752103443732,3.35448843,669.78,669.16,2.049]
[1752103443931,3.35448843,669.78,669.17,1.52542461]
[1752103444236,3.35448843,669.77,669.18,1.52542461]
[1752103444429,3.35448843,669.77,669.19,1.52542461]
[1752103444633,3.35448843,669.77,669.2,1.52542461]
[1752103444832,3.35448843,669.77,669.21,1.52542461]
[1752103445032,3.35448843,669.77,669.22,1.52542461]
[1752103445331,3.35448843,669.78,669.23,1.52542461]
[1752103445529,3.35448843,669.78,669.24,1.52542461]
[1752103445734,3.35448843,669.78,669.25,1.52542461]
[1752103445934,3.35448843,669.78,669.26,1.52542461]
[1752103446234,3.35448843,669.78,669.27,1.52542461]
[1752103446434,3.35448843,669.78,669.28,1.52542461]
[1752103446636,3.35448843,669.78,669.29,1.52542461]
[1752103446831,3.35448843,669.77,669.3,1.52542461]
[1752103447034,3.35448843,669.77,669.31,1.52542461]
[1752103447334,3.35448843,669.77,669.32,1.52542461]
[1752103447536,3.35448843,669.77,669.16,2.049]
[1752103447834,3.35448843,669.77,669.17,1.53458888]
[1752103448036,3.35448843,669.76,669.18,1.53458888]
[1752103448236,3.35448843,669.76,669.19,1.53458888]
[1752103448437,3.35448843,669.76,669.2,1.53458888]
[1752103448637,3.35448843,669.76,669.21,1.53458888]
[1752103448937,3.35448843,669.77,669.22,1.53458888]
[1752103449135,3.35448843,669.77,669.23,1.53458888]
[1752103449333,3.35448843,669.77,669.24,1.53458888]
[1752103449537,3.35448843,669.77,669.25,1.53458888]
[1752103449836,3.35448843,669.77,669.26,1.53458888]
[1752103450037,3.35448843,669.77,669.27,1.53458888]
[1752103450337,3.35448843,669.77,669.28,1.53458888]
[1752103450538,3.35448843,669.77,669.29,1.53458888]
[1752103450736,0.25991097,669.88,669.3,1.53458888]
[1752103450737,3.35448843,669.79,669.3,1.53458888]
[1752103450941,3.35448843,669.79,669.31,1.53458888]
[1752103451141,3.35448843,669.79,669.32,1.53458888]
[1752103451340,3.35448843,669.79,669.33,1.53458888]
[1752103451541,3.35448843,669.8,669.34,1.53458888]
[1752103451735,3.35448843,669.8,669.16,2.049]
[1752103451940,0.25991097,669.88,669.17,1.53443441]
[1752103451941,3.35448843,669.78,669.17,1.53443441]
[1752103452136,3.35448843,669.78,669.18,1.53443441]
[1752103452340,3.35448843,669.78,669.19,1.53443441]
[1752103452638,3.35448843,669.78,669.2,1.53443441]
[1752103452942,3.35448843,669.78,669.21,1.53443441]
[1752103453241,3.35448843,669.78,669.22,1.53443441]
[1752103453537,3.35448843,669.78,669.23,1.53443441]
[1752103453741,3.35448843,669.78,669.24,1.53443441]
[1752103453939,3.35448843,669.77,669.25,1.53443441]
[1752103454142,3.35448843,669.77,669.26,1.53443441]
[1752103454342,3.35448843,669.77,669.27,1.53443441]